fUST/lending_fUST_20251012
["ID","MTS","AMOUNT","RATE_DAILY","PERIOD"]
[390986091,1760268831198,500.0,0.00030268,60]
[390986092,1760268831450,500.0,0.00030268,60]
[390986093,1760268832432,500.0,0.00030268,60]
[390986094,1760268837255,500.0,0.00030268,60]
[390986095,1760268837684,500.0,0.00030268,60]
[390986096,1760268837964,500.0,0.00030268,60]
[390986097,1760268838156,500.0,0.00030268,60]
[390986098,1760268838812,500.0,0.00030268,60]
[390986099,1760268839069,500.0,0.00030268,60]
[390986100,1760268839292,515.17206144,0.00030268,60]
[390986101,1760268844625,500.0,0.00030268,60]
[390986102,1760268846067,569.47,0.00030268,60]
[390986103,1760268849399,500.0,0.00030268,60]
[390986104,1760268855655,500.0,0.00030268,60]
[390986105,1760268856011,311.16,0.00030268,60]
[390986106,1760268858037,500.0,0.00030268,60]
[390986107,1760268858266,316.33,0.00030268,60]
[390986108,1760268858816,500.0,0.00030268,60]
[390986109,1760268867190,500.0,0.00030268,60]
[390986110,1760268867281,500.0,0.00030268,60]
[390986111,1760268867434,181.31,0.00030268,60]
[390986112,1760268874153,500.0,0.00030268,60]
[390986113,1760268874414,500.0,0.00030268,60]
[390986114,1760268874692,500.40576881,0.00030268,60]
[390986115,1760268878063,500.0,0.00030268,60]
[390986116,1760268924696,500.0,0.00030268,60]
[390986117,1760268924994,500.0,0.00030268,60]
[390986118,1760268925229,500.0,0.00030268,60]
[390986119,1760268925483,500.0,0.00030268,60]
[390986120,1760268925735,243.65,0.00030268,60]
[390986121,1760268944880,500.0,0.00030268,60]
[390986122,1760268945180,500.0,0.00030268,60]
[390986123,1760268945418,572.59,0.00030268,60]
[390986124,1760268992728,532.37,0.00030268,60]
[390986125,1760269014791,500.0,0.00030268,60]
[390986126,1760269015016,500.0,0.00030268,60]
[390986127,1760269021056,500.0,0.00030268,60]
[390986128,1760269021310,326.06,0.00030268,60]
[390986129,1760269099787,504.79304014,0.00030271,60]
[390986130,1760269110142,500.0,0.00030271,60]
[390986131,1760269118970,159.33052687,0.00030271,60]
[390986132,1760269119479,500.0,0.00030271,60]
[390986133,1760269127611,500.0,0.00030271,60]
[390986137,1760269167058,500.0,0.00030271,60]
[390986138,1760269167323,500.0,0.00030271,60]
[390986139,1760269172062,500.0,0.00030271,60]
[390986140,1760269175740,500.0,0.00030271,60]
[390986141,1760269198235,500.0,0.00030271,60]
[390986145,1760269343486,376.83020375,0.00030271,60]
[390986146,1760269375361,211.194077,0.00021281,2]
[390986147,1760269525405,933.35,0.00030272,60]
[390986148,1760269536204,159.05500087,0.00021179,2]
[390986149,1760269538147,286.29900156,0.00021179,2]
[390986150,1760269540621,508.97600278,0.00021179,2]
[390986151,1760269543075,191.95865066,0.00021191,2]
[390986152,1760269584941,500.0,0.00030272,60]
[390986153,1760269615421,500.0,0.00030272,60]
[390986154,1760269615663,500.0,0.00030272,60]
[390986155,1760269615925,500.0,0.00030272,60]
[390986156,1760269616155,500.0,0.00030272,60]
[390986157,1760269616498,500.0,0.00030272,60]
[390986158,1760269616759,500.0,0.00030272,60]
[390986159,1760269617329,500.0,0.00030272,60]
[390986160,1760269617600,155.41084537,0.00030272,60]
[390986161,1760269628125,-235.10288835,0.0002214,2]
[390986162,1760269628145,-184.63647817,0.0002214,2]
[390986163,1760269628166,-388.0,0.00022171,2]
[390986164,1760269628185,-1196.21540712,0.00022212,2]
[390986165,1760269628205,-680.84391703,0.00022231,2]
[390986166,1760269628226,-300.0,0.00022239,2]
[390986167,1760269628245,-29414.31031588,0.0002224,2]
[390986168,1760269632854,205.66144384,0.00021179,2]
[390986169,1760269634875,369.82040832,0.00021179,2]
[390986172,1760269820639,500.0,0.00030272,60]
[390986173,1760269820860,500.0,0.00030272,60]
[390986192,1760269837952,-956.97232568,0.00022112,2]
[390986193,1760269837962,-800.0,0.00022133,2]
[390986194,1760269837970,-230.40083059,0.00022133,2]
[390986195,1760269837980,-510.63293777,0.0002214,2]
[390986196,1760269837990,-843.59,0.00022192,10]
[390986197,1760269838000,-258.30490669,0.00022192,10]
[390986206,1760269839944,-254.01130894,0.00022192,10]
[390986210,1760269845916,-295.01019177,0.00022201,2]
[390986211,1760269845925,-236.77270743,0.00022201,2]
[390986212,1760269845935,-300.0,0.00022201,2]
[390986213,1760269845944,-33323.67126296,0.00022202,2]
[390986214,1760269845960,-2515.62,0.00022202,2]
[390986316,1760269949010,500.0,0.00030272,60]
[390986317,1760269949276,500.0,0.00030272,60]
[390986318,1760269949506,500.0,0.00030272,60]
[390986319,1760269949761,169.87,0.00030272,60]
[390986320,1760269955818,500.0,0.00030272,60]
[390986321,1760269966027,500.0,0.00030272,60]
[390986322,1760269967824,500.0,0.00030272,60]
[390986323,1760269969726,503.56321415,0.00030272,60]
[390986324,1760269974269,500.0,0.00030272,60]
[390986325,1760269976100,500.0,0.00030272,60]
[390986326,1760269976422,347.11,0.00030272,60]
[390986327,1760269979142,500.0,0.00030272,60]
[390986328,1760269980932,379.8090767,0.00030272,60]
[390986329,1760269980964,500.0,0.00030272,60]
[390986330,1760270013852,500.0,0.00030271,60]
[390986331,1760270019914,500.0,0.00030271,60]
[390986332,1760270020073,500.0,0.00030271,60]
[390986333,1760270020334,500.0,0.00030271,60]
[390986334,1760270020565,500.0,0.00030271,60]
[390986335,1760270020808,500.0,0.00030271,60]
[390986336,1760270021044,500.0,0.00030271,60]
[390986337,1760270021282,500.0,0.00030271,60]
[390986338,1760270021326,500.0,0.00030271,60]
[390986339,1760270021561,500.0,0.00030271,60]
[390986340,1760270021900,500.0,0.00030271,60]
[390986341,1760270022124,618.69,0.00030271,60]
[390986342,1760270023644,151.0,0.00027397,120]
[390986344,1760270025726,643.21,0.00030271,60]
[390986345,1760270027507,500.0,0.00030271,60]
[390986346,1760270029282,500.0,0.00030271,60]
[390986347,1760270030147,500.0,0.00030271,60]
[390986348,1760270030378,500.0,0.00030271,60]
[390986349,1760270030606,500.0,0.00030271,60]
[390986350,1760270030840,500.0,0.00030271,60]
[390986351,1760270031082,500.0,0.00030271,60]
[390986352,1760270031314,500.0,0.00030271,60]
[390986353,1760270031553,500.0,0.00030271,60]
[390986354,1760270031782,500.0,0.00030271,60]
[390986355,1760270032071,500.0,0.00030271,60]
[390986356,1760270032315,500.0,0.00030271,60]
[390986357,1760270032554,524.52635968,0.00030271,60]
[390986358,1760270033910,545.47937832,0.00030271,60]
[390986359,1760270035053,500.0,0.00030271,60]
[390986360,1760270036670,450.825965,0.00013699,2]
[390986361,1760270036872,450.825965,0.00020187,2]
[390986362,1760270037273,500.0,0.00030271,60]
[390986363,1760270037698,500.0,0.00030271,60]
[390986364,1760270038467,500.0,0.00030271,60]
[390986365,1760270039417,500.0,0.00030271,60]
[390986366,1760270039867,500.0,0.00030271,60]
[390986367,1760270040101,500.0,0.00030271,60]
[390986368,1760270040364,500.0,0.00030271,60]
[390986369,1760270040601,500.0,0.00030271,60]
[390986370,1760270040833,500.0,0.00030271,60]
[390986371,1760270041087,500.0,0.00030271,60]
[390986372,1760270041329,209.86,0.00030271,60]
[390986373,1760270041937,500.0,0.00030271,60]
[390986374,1760270042203,500.0,0.00030271,60]
[390986375,1760270042465,508.26,0.00030271,60]
[390986376,1760270042496,500.0,0.00030271,60]
[390986377,1760270045033,500.0,0.00030271,60]
[390986378,1760270045290,195.67,0.00030271,60]
[390986379,1760270046031,500.0,0.00030271,60]
[390986380,1760270046305,500.0,0.00030271,60]
[390986381,1760270046562,500.0,0.00030271,60]
[390986382,1760270046803,500.0,0.00030271,60]
[390986383,1760270047065,500.0,0.00030271,60]
[390986384,1760270047304,486.53,0.00030271,60]
[390986385,1760270048278,500.0,0.00030271,60]
[390986386,1760270048947,231.27445534,0.00030271,60]
[390986387,1760270052253,500.0,0.00030271,60]
[390986388,1760270052570,234.5,0.00030271,60]
[390986389,1760270055150,500.0,0.00030271,60]
[390986390,1760270056093,500.0,0.00030271,60]
[390986391,1760270057330,500.0,0.00030271,60]
[390986392,1760270058671,500.0,0.00030271,60]
[390986393,1760270060260,500.0,0.00030271,60]
[390986394,1760270061765,500.0,0.00030271,60]
[390986395,1760270065519,500.0,0.00030271,60]
[390986396,1760270067808,500.0,0.00030271,60]
[390986397,1760270068867,548.48,0.00030271,60]
[390986398,1760270070369,500.0,0.00030271,60]
[390986399,1760270074167,500.0,0.00030271,60]
[390986400,1760270075073,500.0,0.00030271,60]
[390986401,1760270075363,503.19870999,0.00030271,60]
[390986402,1760270075396,604.52,0.00030271,60]
[390986403,1760270084662,596.14,0.00030271,60]
[390986404,1760270084953,500.0,0.00030271,60]
[390986405,1760270086456,500.0,0.00030271,60]
[390986406,1760270087625,500.0,0.00030271,60]
[390986407,1760270088432,500.0,0.00030271,60]
[390986408,1760270088672,500.0,0.00030271,60]
[390986409,1760270088949,500.0,0.00030271,60]
[390986410,1760270089224,320.45,0.00030271,60]
[390986411,1760270091630,500.0,0.00030271,60]
[390986412,1760270094957,500.0,0.00030271,60]
[390986413,1760270107485,500.0,0.00030271,60]
[390986415,1760270111702,534.93,0.00030271,60]
[390986416,1760270111735,500.0,0.00030271,60]
[390986417,1760270114617,500.0,0.00030271,60]
[390986418,1760270121928,500.0,0.00030271,60]
[390986419,1760270128971,500.0,0.00030271,60]
[390986420,1760270129196,500.0,0.00030271,60]
[390986421,1760270129415,500.0,0.00030271,60]
[390986422,1760270129633,500.0,0.00030271,60]
[390986423,1760270129866,500.0,0.00030271,60]
[390986424,1760270130095,500.0,0.00030271,60]
[390986425,1760270130472,500.0,0.00030271,60]
[390986426,1760270130735,541.79,0.00030271,60]
[390986428,1760270134182,500.0,0.00030271,60]
[390986429,1760270134222,500.0,0.00030271,60]
[390986430,1760270134429,500.0,0.00030271,60]
[390986431,1760270134677,500.0,0.00030271,60]
[390986432,1760270134974,463.2,0.00030271,60]
[390986433,1760270144388,500.0,0.00030271,60]
[390986434,1760270144654,500.0,0.00030271,60]
[390986435,1760270144882,500.0,0.00030271,60]
[390986436,1760270145411,374.95,0.00030271,60]
[390986437,1760270150709,500.0,0.00030271,60]
[390986438,1760270152729,500.0,0.00030271,60]
[390986439,1760270154545,500.0,0.00030271,60]
[390986440,1760270154785,500.0,0.00030271,60]
[390986441,1760270155032,384.84,0.00030271,60]
[390986442,1760270156827,500.0,0.00030271,60]
[390986443,1760270158680,500.0,0.00030271,60]
[390986444,1760270165696,500.0,0.00030271,60]
[390986445,1760270170949,472.46020789,0.00030271,60]
[390986446,1760270172266,500.0,0.00030271,60]
[390986447,1760270173499,500.0,0.00030271,60]
[390986448,1760270174039,171.0,0.00030271,60]
[390986449,1760270174696,500.0,0.00030271,60]
[390986450,1760270176406,500.0,0.00030271,60]
[390986451,1760270177375,550.52,0.00030271,60]
[390986452,1760270185940,500.0,0.00030271,60]
[390986453,1760270186810,645.82,0.00030271,60]
[390986454,1760270188121,500.0,0.00030271,60]
[390986455,1760270188608,500.0,0.00030271,60]
[390986456,1760270188855,458.27,0.00030271,60]
[390986457,1760270193985,500.0,0.00030271,60]
[390986458,1760270194562,500.0,0.00030271,60]
[390986459,1760270194815,500.0,0.00030271,60]
[390986460,1760270195043,524.78,0.00030271,60]
[390986461,1760270198236,500.0,0.00030271,60]
[390986462,1760270198580,500.0,0.00030271,60]
[390986463,1760270200041,504.98409997,0.00030271,60]
[390986464,1760270202422,500.0,0.00030271,60]
[390986465,1760270202647,175.0,0.00030271,60]
[390986466,1760270212477,500.0,0.00030271,60]
[390986467,1760270217015,500.0,0.00030271,60]
[390986468,1760270218114,500.0,0.00030271,60]
[390986469,1760270218520,533.88,0.00030271,60]
[390986470,1760270224574,500.0,0.00030271,60]
[390986471,1760270225847,500.0,0.00030271,60]
[390986472,1760270230021,500.0,0.00030271,60]
[390986475,1760270239571,500.0,0.00030271,60]
[390986476,1760270241314,500.0,0.00030271,60]
[390986477,1760270243135,500.0,0.00030271,60]
[390986478,1760270252316,500.0,0.00030271,60]
[390986479,1760270254789,500.0,0.00030271,60]
[390986480,1760270257304,502.00537925,0.00030271,60]
[390986481,1760270260865,500.0,0.00030271,60]
[390986482,1760270261264,385.46,0.00030271,60]
[390986483,1760270267933,500.42574064,0.00030271,60]
[390986484,1760270271136,500.0,0.00030271,60]
[390986485,1760270272962,416.55,0.00030271,60]
[390986486,1760270274840,500.0,0.00030271,60]
[390986487,1760270275005,247.49,0.00030271,60]
[390986488,1760270280878,500.0,0.00030271,60]
[390986489,1760270282368,500.0,0.00030271,60]
[390986490,1760270284105,500.0,0.00030271,60]
[390986491,1760270285989,500.0,0.00030271,60]
[390986492,1760270288153,500.0,0.00030271,60]
[390986493,1760270293581,500.0,0.00030271,60]
[390986494,1760270295557,500.0,0.00030297,60]
[390986495,1760270304291,500.0,0.00030297,60]
[390986496,1760270306034,500.0,0.00030297,60]
[390986501,1760270314084,500.0,0.00030297,60]
[390986502,1760270316586,300.6824326,0.00030297,60]
[390986503,1760270325617,500.0,0.00030297,60]
[390986504,1760270326458,500.0,0.00030297,60]
[390986505,1760270330424,500.0,0.00030297,60]
[390986506,1760270332257,500.0,0.00030297,60]
[390986508,1760270344672,500.0,0.00030297,60]
[390986509,1760270348288,500.0,0.00030297,60]
[390986510,1760270350075,500.0,0.00030297,60]
[390986511,1760270351866,500.0,0.00030297,60]
[390986513,1760270358312,500.0,0.00030297,60]
[390986514,1760270363183,500.0,0.00030297,60]
[390986516,1760270377785,500.0,0.00030297,60]
[390986517,1760270379231,500.0,0.00030297,60]
[390986519,1760270382594,500.0,0.00030297,60]
[390986520,1760270385332,500.0,0.00030297,60]
[390986521,1760270385619,227.46,0.00030297,60]
[390986522,1760270389496,500.0,0.00030297,60]
[390986523,1760270389969,442.03435494,0.00030297,60]
[390986524,1760270392091,502.62941074,0.00030297,60]
[390986525,1760270392575,500.0,0.00030297,60]
[390986526,1760270398526,500.0,0.00030297,60]
[390986527,1760270405369,500.0,0.00030297,60]
[390986529,1760270409228,500.0,0.00030297,60]
[390986530,1760270413835,500.0,0.00030297,60]
[390986531,1760270414055,531.09,0.00030297,60]
[390986532,1760270415747,444.47636694,0.00030297,60]
[390986533,1760270416580,534.40182999,0.00030297,60]
[390986534,1760270417352,500.0,0.00030297,60]
[390986535,1760270417859,500.8873437,0.00030297,60]
[390986536,1760270418613,500.0,0.00030297,60]
[390986537,1760270420525,500.0,0.00030297,60]
[390986538,1760270424448,500.0,0.00030297,60]
[390986539,1760270427729,500.0,0.00030297,60]
[390986540,1760270437697,301.4913544,0.00030297,60]
[390986541,1760270439372,441.73801122,0.00030297,60]
[390986542,1760270447875,500.0,0.00030297,60]
[390986543,1760270452577,500.0,0.00030297,60]
[390986544,1760270453716,500.0,0.00030297,60]
[390986545,1760270454202,500.0,0.00030297,60]
[390986546,1760270454846,500.0,0.00030297,60]
[390986547,1760270467160,500.0,0.00030297,60]
[390986548,1760270475425,500.0,0.00030297,60]
[390986549,1760270481164,500.0,0.00030297,60]
[390986550,1760270483312,500.0,0.00030297,60]
[390986551,1760270485060,500.0,0.00030297,60]
[390986552,1760270488270,500.0,0.00030297,60]
[390986553,1760270491704,500.0,0.00030297,60]
[390986554,1760270492039,500.0,0.00030297,60]
[390986555,1760270500728,553.46902126,0.00030297,60]
[390986556,1760270502004,502.55765778,0.00030297,60]
[390986557,1760270502507,500.0,0.00030297,60]
[390986558,1760270502746,334.68,0.00030297,60]
[390986559,1760270505056,488.9120231,0.00030297,60]
[390986560,1760270509050,500.0,0.00030297,60]
[390986561,1760270511622,500.0,0.00030297,60]
[390986562,1760270513396,502.60380516,0.00030297,60]
[390986563,1760270515257,500.0,0.00030297,60]
[390986568,1760270540572,500.0,0.00030297,60]
[390986569,1760270542079,500.0,0.00030297,60]
[390986570,1760270542586,2437.0,0.00021799,2]
[390986571,1760270556769,500.0,0.00030297,60]
[390986572,1760270566652,502.92449584,0.00030297,60]
[390986573,1760270673336,510.0,0.00027397,120]
[390986574,1760270698439,510.0,0.00027397,120]
[390986576,1760270741917,506.4435231,0.00021799,2]
[390986579,1760270832988,168.0,0.00021362,2]
[390986580,1760270843464,168.0,0.00021468,2]
[390986583,1760270954409,563.52,0.00030297,60]
[390986584,1760270986703,500.0,0.00030297,60]
[390986585,1760270988730,503.23611768,0.00030297,60]
[390986586,1760271011611,500.0,0.00030297,60]
[390986587,1760271013463,503.51645691,0.00030297,60]
[390986588,1760271031410,500.0,0.00030297,60]
[390986598,1760271037816,-168.0,0.00021846,2]
[390986599,1760271037826,-159.287309,0.00021859,3]
[390986600,1760271037835,-2737.0,0.0002198,2]
[390986601,1760271037844,-225.79281397,0.0002198,2]
[390986602,1760271037853,-2737.0,0.00021989,2]
[390986603,1760271037862,-159.287309,0.0002205,3]
[390986604,1760271037871,-168.0,0.00022082,2]
[390986605,1760271037880,-165.7408952,0.00022101,2]
[390986606,1760271037889,-206.50713424,0.00022101,2]
[390986607,1760271037898,-300.0,0.00022101,2]
[390986608,1760271037908,-612.58453869,0.00022102,2]
[390986609,1760271037923,-127645.29749572,0.00022102,2]
[390986613,1760271039892,-486.56,0.00022092,10]
[390986614,1760271039901,-99846.71728032,0.00022102,2]
[390986615,1760271039947,-3811.6792574,0.00022102,2]
[390986626,1760271043014,-81698.33454308,0.00022102,2]
[390986627,1760271043023,-765.57786056,0.00022102,2]
[390986628,1760271043033,-344.0316061,0.00022102,2]
[390986629,1760271043042,-1598.87984574,0.00022111,2]
[390986630,1760271043052,-382.97470333,0.00022111,2]
[390986631,1760271043062,-250.0,0.00022189,2]
[390986632,1760271043072,-250.0,0.00022189,2]
[390986633,1760271043081,-250.0,0.00022189,2]
[390986634,1760271043090,-259.80291695,0.00022189,2]
[390986635,1760271043100,-1057.22,0.00022192,3]
[390986636,1760271043109,-1821.77,0.00022192,3]
[390986637,1760271043118,-910.89,0.00022192,3]
[390986638,1760271043127,-455.44,0.00022192,3]
[390986639,1760271043136,-227.72,0.00022192,3]
[390986640,1760271043144,-683.19,0.00022192,3]
[390986641,1760271043153,-644.651486,0.000222,2]
[390986642,1760271043162,-200.0,0.00022201,2]
[390986643,1760271043171,-200.0,0.00022201,2]
[390986644,1760271043180,-503.41186619,0.00022201,2]
[390986645,1760271043188,-500.0,0.00022202,5]
[390986646,1760271043197,-500.0,0.00022202,2]
[390986647,1760271043206,-500.0,0.00022202,2]
[390986648,1760271043215,-500.0,0.00022202,2]
[390986649,1760271043224,-500.0,0.00022202,2]
[390986650,1760271043233,-500.0,0.00022202,2]
[390986651,1760271043241,-500.0,0.00022202,2]
[390986652,1760271043250,-500.0,0.00022202,2]
[390986653,1760271043263,-500.0,0.00022202,2]
[390986654,1760271043272,-500.0,0.00022202,2]
[390986655,1760271043280,-500.0,0.00022202,2]
[390986656,1760271043289,-28657.87693564,0.00022211,3]
[390986657,1760271043298,-500.0,0.00022211,3]
[390986658,1760271043308,-151.0,0.00022211,7]
[390986659,1760271043317,-151.0,0.00022211,7]
[390986660,1760271043326,-299.228441,0.00022211,7]
[390986661,1760271043336,-151.0,0.00022211,7]
[390986662,1760271043344,-402.2877588,0.00022211,7]
[390986663,1760271043353,-1567.9519887,0.00022211,7]
[390986664,1760271043362,-151.0,0.00022211,7]
[390986665,1760271043370,-151.0,0.00022211,7]
[390986666,1760271043379,-151.0,0.00022211,7]
[390986667,1760271043387,-151.0,0.00022211,7]
[390986668,1760271043396,-151.0,0.00022211,7]
[390986669,1760271043405,-184.474008,0.00022211,7]
[390986670,1760271043413,-184.474008,0.00022211,7]
[390986671,1760271043422,-184.474008,0.00022211,7]
[390986672,1760271043430,-184.474008,0.00022211,7]
[390986673,1760271043439,-184.474008,0.00022211,7]
[390986674,1760271043448,-184.474008,0.00022211,7]
[390986675,1760271043457,-184.474008,0.00022211,7]
[390986676,1760271043466,-184.474008,0.00022211,7]
[390986677,1760271043474,-184.474008,0.00022211,7]
[390986678,1760271043483,-184.474008,0.00022211,7]
[390986679,1760271043492,-184.474008,0.00022211,7]
[390986680,1760271043501,-184.474008,0.00022211,7]
[390986681,1760271043511,-1122.44318,0.00022211,7]
[390986682,1760271043520,-1122.44318,0.00022211,7]
[390986683,1760271043528,-1122.44318,0.00022211,7]
[390986684,1760271043537,-151.0,0.00022211,7]
[390986685,1760271043546,-151.0,0.00022211,7]
[390986686,1760271043555,-1122.44318,0.00022211,7]
[390986687,1760271043564,-151.0,0.00022211,7]
[390986688,1760271043573,-1122.44318,0.00022211,7]
[390986689,1760271043583,-1122.44318,0.00022211,7]
[390986690,1760271043592,-151.0,0.00022211,7]
[390986691,1760271043601,-152.432686,0.00022211,7]
[390986692,1760271043610,-1122.44318,0.00022211,7]
[390986693,1760271043619,-1122.44318,0.00022211,7]
[390986694,1760271043628,-1122.44318,0.00022211,7]
[390986695,1760271043636,-1122.44318,0.00022211,7]
[390986696,1760271043645,-1122.44318,0.00022211,7]
[390986697,1760271043654,-1122.44318,0.00022211,7]
[390986698,1760271043663,-151.0,0.00022211,7]
[390986699,1760271043671,-220.859001,0.00022211,7]
[390986700,1760271043680,-151.0,0.00022211,7]
[390986701,1760271043689,-151.0,0.00022211,7]
[390986702,1760271043698,-151.0,0.00022211,7]
[390986703,1760271043706,-151.0,0.00022211,7]
[390986704,1760271043715,-151.0,0.00022211,7]
[390986705,1760271043724,-151.0,0.00022211,7]
[390986706,1760271043733,-1060.012853,0.00022211,7]
[390986707,1760271043742,-1060.012853,0.00022211,7]
[390986708,1760271043751,-1060.012853,0.00022211,7]
[390986709,1760271043761,-1060.012853,0.00022211,7]
[390986710,1760271043770,-1060.012853,0.00022211,7]
[390986711,1760271043779,-1060.012853,0.00022211,7]
[390986712,1760271043788,-1060.012853,0.00022211,7]
[390986713,1760271043798,-1060.012853,0.00022211,7]
[390986714,1760271043808,-1060.012853,0.00022211,7]
[390986715,1760271043818,-1060.012853,0.00022211,7]
[390986716,1760271043827,-1060.012853,0.00022211,7]
[390986717,1760271043836,-151.0,0.00022211,7]
[390986718,1760271043845,-1060.012853,0.00022211,7]
[390986719,1760271043855,-151.0,0.00022211,7]
[390986720,1760271043864,-1060.012853,0.00022211,7]
[390986721,1760271043873,-151.0,0.00022211,7]
[390986722,1760271043882,-1060.012853,0.00022211,7]
[390986723,1760271043891,-1060.012853,0.00022211,7]
[390986724,1760271043901,-1060.012853,0.00022211,7]
[390986725,1760271043910,-1060.012853,0.00022211,7]
[390986726,1760271043919,-1060.012853,0.00022211,7]
[390986727,1760271043928,-1060.012853,0.00022211,7]
[390986728,1760271043937,-1060.012852,0.00022211,7]
[390986729,1760271043947,-636.485907,0.00022211,7]
[390986730,1760271043956,-636.485907,0.00022211,7]
[390986731,1760271043964,-636.485907,0.00022211,7]
[390986732,1760271043973,-636.485907,0.00022211,7]
[390986733,1760271043982,-636.485907,0.00022211,7]
[390986734,1760271043991,-636.485907,0.00022211,7]
[390986735,1760271044001,-636.485907,0.00022211,7]
[390986736,1760271044010,-636.485907,0.00022211,7]
[390986737,1760271044020,-636.485907,0.00022211,7]
[390986738,1760271044029,-636.485907,0.00022211,7]
[390986739,1760271044038,-636.485907,0.00022211,7]
[390986740,1760271044048,-636.485907,0.00022211,7]
[390986741,1760271044058,-636.485907,0.00022211,7]
[390986742,1760271044067,-636.485907,0.00022211,7]
[390986743,1760271044076,-636.485907,0.00022211,7]
[390986744,1760271044085,-636.485907,0.00022211,7]
[390986745,1760271044094,-636.485907,0.00022211,7]
[390986746,1760271044104,-636.485907,0.00022211,7]
[390986747,1760271044113,-636.485907,0.00022211,7]
[390986748,1760271044123,-636.485915,0.00022211,7]
[390986749,1760271044132,-151.0,0.00022211,7]
[390986750,1760271044141,-151.0,0.00022211,7]
[390986751,1760271044149,-151.0,0.00022211,7]
[390986752,1760271044160,-151.0,0.00022211,7]
[390986753,1760271044169,-151.0,0.00022211,2]
[390986754,1760271044178,-151.0,0.00022211,2]
[390986755,1760271044187,-151.0,0.00022211,2]
[390986756,1760271044196,-151.0,0.00022211,2]
[390986757,1760271044205,-206.964391,0.00022211,2]
[390986758,1760271044215,-151.0,0.00022211,7]
[390986759,1760271044223,-151.0,0.00022211,7]
[390986760,1760271044232,-151.0,0.00022211,7]
[390986761,1760271044241,-151.0,0.00022211,7]
[390986762,1760271044250,-151.0,0.00022211,7]
[390986763,1760271044263,-151.0,0.00022211,7]
[390986764,1760271044273,-151.0,0.00022211,7]
[390986765,1760271044282,-151.0,0.00022211,7]
[390986766,1760271044290,-151.0,0.00022211,7]
[390986767,1760271044301,-151.0,0.00022211,7]
[390986768,1760271044310,-151.0,0.00022211,7]
[390986769,1760271044319,-151.0,0.00022211,7]
[390986770,1760271044329,-151.0,0.00022211,7]
[390986771,1760271044338,-151.0,0.00022211,7]
[390986772,1760271044346,-151.0,0.00022211,7]
[390986773,1760271044355,-200.212284,0.00022211,7]